bitfinex/quotes_ETHUSD_20260209
["timestamp","ask_amount","ask_price","bid_price","bid_amount"]
[1770596486755,0.002,2096.2,2095.2,1.19420351]
[1770596487159,0.002,2096.2,2095.2,2.18787196]
[1770596488559,0.002,2096.2,2095.3,0.99366845]
[1770596488760,0.98771017,2096.2,2095.2,0.001]
[1770596489641,0.002,2096.2,2095.2,0.99466845]
[1770596490771,0.002,2096.2,2095.3,1.19314656]
[1770596490946,0.98571017,2095.7,2094.8,0.001]
[1770596491145,0.05519294,2095.1,2094.8,0.001]
[1770596491346,0.98571017,2095.4,2094.3,3.333]
[1770596491663,0.98571017,2095.4,2094.0,0.001]
[1770596491966,0.98571017,2095.1,2094.0,0.001]
[1770596492146,0.98571017,2095.1,2094.0,1.19488374]
[1770596492463,0.98571017,2095.1,2094.0,0.001]
[1770596492670,1.19331742,2095.0,2094.0,1.19487931]
[1770596492963,2.17902759,2095.0,2094.0,0.001]
[1770596494066,4.77213075,2095.6,2094.2,0.99366845]
[1770596494444,4.77213075,2095.6,2094.3,11.471876]
[1770596494644,1.192805,2095.9,2094.5,2.18727074]
[1770596494852,1.192805,2095.9,2094.7,10.151858]
[1770596495266,1.192805,2095.9,2094.7,11.14552645]
[1770596495466,1.19271409,2096.1,2095.0,1.5]
[1770596495669,1.19271409,2096.1,2095.1,7.442795]
[1770596496869,1.19271409,2096.1,2095.0,1.5]
[1770596496870,0.002,2096.2,2095.2,1.19320351]
[1770596497062,0.98771017,2096.2,2095.1,1.19322002]
[1770596497951,0.98571017,2095.9,2095.0,1.5]
[1770596498256,4.42211017,2096.1,2094.5,9.210397]
[1770596498458,4.31971017,2096.1,2095.1,1.19323146]
[1770596498838,4.31971017,2096.1,2094.9,4.77341812]
[1770596498839,1.19274809,2096.0,2095.0,3.334]
[1770596501040,1.19274809,2096.0,2095.0,4.52731308]
[1770596501376,1.19467256,2096.2,2095.2,8.930536]
[1770596502081,0.002,2096.2,2095.2,8.930536]
[1770596502364,0.002,2096.2,2095.3,10.120421]
[1770596502779,0.002,2096.2,2095.3,10.11408945]
[1770596502968,0.002,2096.2,2095.4,1.19308962]
[1770596503973,0.002,2096.2,2095.3,1.19311475]
[1770596504355,0.002,2096.2,2095.3,1.19314441]
[1770596504555,0.002,2096.2,2095.2,1.19316493]
[1770596504959,0.002,2096.2,2095.1,4.77281835]
[1770596505160,0.98096395,2096.0,2094.8,0.001]
[1770596505779,1.03615689,2095.9,2094.8,0.001]
[1770596505959,0.98096395,2095.9,2094.8,1.19438746]
[1770596506159,0.98096395,2095.9,2094.9,1.19337348]
[1770596506360,0.98096395,2095.9,2094.8,0.001]
[1770596506558,7.33096395,2095.9,2094.8,1.19441461]
[1770596506973,1.03615689,2095.7,2094.8,0.001]
[1770596507177,0.98096395,2095.7,2094.8,0.001]
[1770596507577,1.24805485,2095.8,2094.8,0.001]
[1770596507750,1.19286191,2095.8,2094.8,0.001]
[1770596507956,7.54282853,2095.9,2094.9,0.93221805]
[1770596508174,7.54280519,2095.9,2094.9,0.93221805]
[1770596508776,8.52376914,2095.9,2094.8,3.335]
[1770596508959,8.52376914,2095.9,2094.8,4.5284089]
[1770596508960,1.19291883,2095.7,2094.8,4.5284089]
[1770596509471,1.19291883,2095.7,2094.8,3.335]
[1770596509671,0.98096395,2095.6,2094.8,3.335]
[1770596510078,1.03615689,2095.4,2094.5,0.001]
[1770596511057,0.98096395,2095.2,2094.5,0.001]
[1770596511781,0.98096395,2095.2,2094.8,0.001]
[1770596511975,0.98096395,2095.2,2094.5,0.001]
[1770596512661,1.03615689,2095.0,2094.5,0.001]
[1770596513167,1.03615689,2095.0,2094.0,3.335]
[1770596513168,1.19337438,2094.9,2094.0,3.335]
[1770596513576,0.98096395,2094.7,2094.0,0.001]
[1770596513778,0.05519294,2094.6,2094.0,0.001]
[1770596514095,1.03615689,2094.6,2094.0,0.001]
[1770596514289,1.03615689,2094.5,2093.4,3.334]
[1770596514895,0.1024,2094.8,2093.4,3.334]
[1770596515085,2.17433833,2094.9,2093.6,1.19407839]
[1770596515270,2.17433833,2094.9,2093.4,3.334]
[1770596515271,0.98096395,2094.6,2093.4,3.334]
[1770596515469,0.05519294,2094.2,2093.4,3.334]
[1770596515676,0.1024,2094.7,2093.5,1.19416516]
[1770596515996,0.98096395,2094.8,2093.5,1.19416516]
[1770596516184,7.33096395,2094.8,2093.5,1.19416516]
[1770596516570,6.35,2094.8,2093.6,0.93221805]
[1770596517374,1.19348832,2094.7,2093.7,1.19405836]
[1770596517987,1.19348832,2094.7,2093.6,1.19407713]
[1770596519104,0.98096395,2094.6,2093.5,1.19413918]
[1770596519274,6.40519294,2094.6,2093.2,5.46253302]
[1770596519475,2.17462323,2094.4,2093.3,1.19428517]
[1770596520100,2.17462323,2094.4,2093.2,4.53030901]
[1770596520609,1.03615689,2094.3,2093.2,0.001]
[1770596520803,0.05519294,2094.0,2093.2,0.001]
[1770596521107,0.05519294,2093.4,2092.8,0.001]
[1770596521295,1.03615689,2093.7,2092.8,0.001]
[1770596521482,1.19411539,2093.6,2092.8,0.001]
[1770596521877,0.98096395,2093.5,2092.8,0.001]
[1770596522081,0.05519294,2093.4,2092.8,0.001]
[1770596522284,1.03615689,2093.4,2092.8,0.001]
[1770596522804,0.98096395,2093.2,2092.5,0.001]
[1770596523590,1.19440064,2093.1,2092.5,0.001]
[1770596523790,1.24959358,2093.1,2092.5,0.001]
[1770596524195,1.19440064,2093.1,2092.5,0.001]
[1770596524510,4.53032617,2093.3,2093.0,0.001]
[1770596525079,1.19432617,2093.3,2093.0,0.001]
[1770596525707,1.19409766,2093.7,2093.0,0.001]
[1770596525923,4.77597796,2093.9,2093.0,0.001]
[1770596526286,1.19394431,2093.9,2093.0,0.001]
[1770596527708,6.47193066,2094.0,2093.1,2.12661869]
[1770596527709,2.89019196,2094.0,2093.1,2.12661869]
[1770596527915,2.89019196,2094.0,2093.1,1.19440064]
[1770596528125,1.6962993,2094.0,2093.1,2.12661869]
[1770596528286,2.89019527,2094.0,2093.1,2.12661869]
[1770596529103,1.19389597,2094.0,2093.1,2.12661869]
[1770596529313,1.19386988,2094.1,2093.1,2.12661869]
[1770596529502,1.19371627,2094.3,2093.1,2.12661869]
[1770596529906,4.77350431,2094.9,2093.5,0.93221805]
[1770596530210,0.98096395,2094.8,2093.3,11.81494305]
[1770596530406,0.98096395,2094.8,2093.4,0.93221805]
[1770596531597,1.19348832,2094.7,2093.5,1.19417243]
[1770596531802,1.19348832,2094.7,2093.6,3.337]
[1770596532706,1.19331742,2095.0,2093.7,0.93221805]
[1770596533222,1.19329307,2095.1,2093.9,0.93221805]
[1770596533956,4.77436334,2095.4,2094.0,1.19388729]
[1770596534111,4.77436334,2095.4,2094.3,0.93221805]
[1770596534112,0.002,2095.4,2094.3,0.93221805]
[1770596535233,0.002,2095.4,2094.5,0.95113194]
[1770596535610,0.002,2095.4,2094.7,0.95113194]
[1770596536038,0.002,2095.4,2094.8,1.19343135]
[1770596536538,0.002,2095.4,2094.8,0.94868835]
[1770596536744,0.002,2095.4,2095.0,2.127216]
[1770596537645,0.002,2095.2,2095.0,2.127216]
[1770596537938,0.002,2095.4,2095.0,2.127216]
[1770596538123,0.002,2095.4,2095.1,1.19326046]
[1770596540444,0.002,2095.6,2095.1,0.94868835]
[1770596541234,0.002,2095.7,2095.3,0.94868835]
[1770596541435,0.002,2095.7,2095.4,3.335]
[1770596541941,0.002,2095.7,2094.9,1.19337401]
[1770596542122,0.002,2095.7,2094.9,4.28652705]
[1770596542947,0.002,2095.7,2095.0,0.94868835]
[1770596543325,0.002,2095.7,2095.1,3.09315304]
[1770596543527,0.002,2095.7,2094.7,1.19345426]
[1770596543728,0.98920145,2095.7,2094.7,3.09315304]
[1770596543937,0.002,2095.7,2094.9,1.19337358]
[1770596544125,0.002,2095.7,2094.8,1.19340236]
[1770596544527,2.18212028,2095.7,2094.7,1.19348772]
[1770596544748,2.18212028,2095.7,2094.8,3.09315304]
[1770596545555,1.04239439,2095.5,2094.3,1.19370769]
[1770596545843,0.98720145,2095.5,2094.6,1.19351359]
[1770596546149,0.98720145,2095.5,2094.4,1.19362876]
[1770596546348,0.98720145,2095.5,2094.6,1.19354383]
[1770596546648,1.19491883,2095.7,2094.6,1.19354383]
[1770596546948,1.19491883,2095.7,2094.7,3.09315304]
[1770596547327,1.19491883,2095.7,2094.8,3.09315304]
[1770596547521,1.19491883,2095.7,2094.6,3.09315304]
[1770596547928,1.19491883,2095.7,2094.7,4.04184139]
[1770596548131,1.19491883,2095.7,2094.7,0.94868835]
[1770596549922,0.002,2095.7,2095.0,0.001]
[1770596550123,0.002,2095.5,2095.0,0.001]
[1770596550726,0.002,2095.5,2095.1,3.09315304]
[1770596551322,0.002,2095.5,2095.2,3.09315304]
[1770596551626,0.002,2095.5,2095.1,3.09315304]
[1770596551828,0.002,2095.5,2095.0,0.001]
[1770596553753,0.98920145,2095.5,2095.0,0.001]
[1770596553947,1.19308962,2095.4,2095.0,0.001]
[1770596555132,1.19308962,2095.4,2095.1,3.09315304]
[1770596555343,1.19308962,2095.4,2095.0,0.001]
[1770596555546,0.002,2095.5,2095.1,3.09315304]
[1770596556053,0.002,2095.5,2095.2,1.19320351]
[1770596556952,0.002,2095.5,2095.3,3.09315304]
[1770596558662,0.002,2095.5,2095.3,4.28629546]
[1770596559262,0.002,2095.9,2095.4,3.08915304]
[1770596560856,0.002,2095.9,2095.0,0.001]
[1770596561058,0.05519294,2095.8,2095.2,3.02915304]
[1770596561239,1.04239439,2095.8,2095.0,3.02233456]
[1770596561444,0.98720145,2095.7,2095.0,3.02233456]
[1770596562173,0.98720145,2095.7,2095.0,0.001]
[1770596562174,1.04239439,2095.7,2095.0,0.001]
[1770596562871,1.19297575,2095.6,2095.2,0.001]
[1770596563166,0.002,2095.3,2095.0,0.001]
[1770596563574,0.002,2095.3,2095.0,3.02233456]
[1770596563972,0.002,2095.5,2095.0,0.001]
[1770596564184,0.002,2095.5,2095.1,3.01933456]
[1770596565369,0.002,2095.5,2095.0,0.001]
[1770596565864,3.38919294,2095.4,2095.0,0.001]
[1770596566060,4.28798803,2095.4,2095.0,0.001]
[1770596567068,1.2483395,2095.3,2094.2,4.5277376]
[1770596567276,1.2483395,2095.3,2094.3,1.19371389]
[1770596567968,0.95398803,2095.2,2094.2,1.19377131]
[1770596569682,0.95398803,2095.2,2094.1,0.001]
[1770596569981,1.00918097,2095.0,2094.1,0.001]
[1770596570879,0.05519294,2094.6,2094.1,0.001]
[1770596571181,3.335,2094.6,2094.1,0.001]
[1770596571877,1.19360229,2094.5,2094.1,0.001]
[1770596572468,1.24879523,2094.5,2094.1,0.001]
[1770596572666,1.19360229,2094.5,2094.1,0.001]
[1770596572862,1.00918097,2094.3,2093.0,1.19543004]
[1770596573054,1.00918097,2094.3,2093.0,1.19543008]
[1770596573477,0.05519294,2094.0,2093.0,1.19543008]
[1770596573657,3.335,2093.9,2093.0,0.001]
[1770596573858,1.19400133,2093.8,2093.0,0.001]
[1770596575188,1.19400133,2093.8,2093.2,0.001]
[1770596575562,1.24919427,2093.8,2093.2,0.001]
[1770596578264,2.2031823,2093.8,2093.2,0.001]
[1770596578473,0.95398803,2093.7,2093.0,0.001]
[1770596579189,0.05519294,2093.5,2093.0,0.001]
[1770596579495,3.336,2093.4,2093.0,0.001]
[1770596579864,0.95398803,2093.3,2092.8,0.001]
[1770596580065,1.19434358,2093.2,2092.5,0.001]
[1770596580966,1.19400133,2093.8,2092.6,0.94981919]
[1770596581303,4.77600534,2094.1,2092.5,0.001]
[1770596581304,2.91527817,2094.3,2092.8,0.94981919]
[1770596581503,3.336,2094.2,2093.2,0.94981919]
[1770596581708,3.336,2094.2,2093.4,0.94981919]
[1770596582192,4.52979031,2094.2,2093.5,1.19417243]
[1770596582404,3.336,2094.2,2093.5,1.19417243]
[1770596583492,4.52977807,2094.2,2093.5,1.19417243]
[1770596583914,4.52977807,2094.2,2092.8,1.19453135]
[1770596583915,0.05519294,2094.0,2092.8,1.19453135]
[1770596584127,1.19394431,2093.9,2092.9,0.94981919]
[1770596584283,4.52978271,2094.2,2093.1,0.94981919]
[1770596586216,3.336,2094.2,2093.2,2.14416277]
[1770596586428,4.52978784,2094.2,2093.3,0.94981919]
[1770596586585,4.52978784,2094.2,2093.2,1.19434358]
[1770596587813,4.52978784,2094.2,2093.3,0.001]
[1770596588317,4.52978784,2094.2,2093.4,1.19422948]
[1770596590993,3.336,2094.2,2093.5,0.94981919]
[1770596591230,4.52978277,2094.2,2093.5,0.94981919]
[1770596591729,4.53060229,2094.5,2093.5,0.94981919]
[1770596591929,4.58579523,2094.5,2093.5,0.94981919]
[1770596592139,4.58579523,2094.5,2093.4,1.19422948]
[1770596592292,4.58579523,2094.5,2093.3,0.001]
[1770596592293,0.95398803,2094.4,2093.3,0.001]
[1770596592610,0.95398803,2094.4,2093.3,1.19527754]
[1770596592611,0.05519294,2094.2,2093.3,1.19527754]
[1770596593831,0.05519294,2094.2,2093.3,1.19524348]
[1770596594745,1.19383028,2094.1,2093.3,1.19524348]
[1770596595631,1.19365928,2094.4,2093.4,0.93689283]
[1770596596737,1.19365928,2094.4,2093.5,2.12894358]
[1770596596938,1.24885222,2094.4,2093.3,0.001]
[1770596597238,0.05519294,2094.1,2093.3,0.001]
[1770596597539,3.337,2094.0,2093.3,0.001]
[1770596597719,0.95707217,2093.8,2093.0,0.001]
[1770596597919,0.05519294,2093.7,2093.0,0.001]
[1770596598714,1.19411539,2093.6,2093.0,0.001]
[1770596599014,3.337,2093.5,2093.0,0.001]
[1770596599818,1.1940364,2093.8,2093.0,0.001]
[1770596600030,3.337,2093.9,2093.0,0.001]
[1770596600234,0.05519294,2093.8,2093.0,0.001]
[1770596600823,1.19405836,2093.7,2093.0,0.001]
[1770596604056,0.05519294,2093.5,2093.0,0.001]
[1770596604241,3.337,2093.4,2093.0,0.001]
[1770596605146,4.53124948,2093.4,2093.0,0.001]
[1770596605344,3.337,2093.4,2093.0,0.001]
[1770596607339,4.53123205,2093.4,2093.0,0.001]
[1770596607720,3.337,2093.4,2093.0,0.001]
[1770596610142,1.19383028,2094.1,2093.0,0.93577115]
[1770596610344,3.337,2094.0,2093.0,0.93577115]
[1770596611289,0.95707217,2093.8,2093.0,0.001]
[1770596611770,0.05519294,2093.5,2093.0,0.001]
[1770596611982,3.337,2093.5,2093.0,0.001]
[1770596612150,1.19422948,2093.4,2093.0,0.001]
[1770596612947,1.19422948,2093.4,2092.8,0.001]
[1770596613670,1.19422948,2093.4,2093.2,0.001]
[1770596613860,1.19422948,2093.4,2092.8,0.001]
[1770596614263,1.19422948,2093.4,2093.0,0.001]
[1770596614569,0.05519294,2093.2,2092.5,0.001]
[1770596614769,0.90187923,2093.3,2092.5,0.001]
[1770596614946,1.19422948,2093.4,2092.5,0.001]
[1770596615269,0.90187923,2093.3,2092.5,0.001]
[1770596616550,1.19434358,2093.2,2092.5,0.001]
[1770596617984,3.337,2093.5,2092.5,0.93577115]
[1770596617985,4.77711267,2093.4,2092.5,0.93577115]
[1770596618702,4.53122948,2093.5,2092.5,0.93577115]
[1770596618859,4.7764752,2093.6,2092.7,0.93477115]
[1770596618860,1.19414919,2093.6,2092.7,0.93477115]
[1770596619459,10.8821003,2093.7,2092.7,0.93477115]
[1770596620858,10.8821003,2093.7,2092.8,1.19457186]
[1770596621057,0.05519294,2093.5,2092.5,0.001]
[1770596621264,0.95707217,2093.5,2092.5,0.001]
[1770596621668,0.95707217,2093.5,2092.5,1.19574023]
[1770596621890,0.95707217,2093.5,2092.5,0.001]
[1770596622182,0.05519294,2093.4,2092.5,0.001]
[1770596623191,1.19428653,2093.3,2092.5,0.001]
[1770596623486,3.338,2093.2,2092.5,0.001]
[1770596625072,4.53239854,2093.2,2092.5,0.001]
[1770596626380,4.53239854,2093.2,2092.7,0.001]
[1770596629966,0.7,2093.0,2092.7,0.001]
[1770596630593,0.7,2093.0,2092.7,0.98713485]
[1770596630793,1.19411539,2093.6,2092.7,0.98713485]
[1770596630971,7.5441033,2093.7,2092.7,0.98713485]
[1770596631170,7.54408259,2093.7,2092.7,0.98713485]
[1770596631892,7.54408259,2093.7,2092.8,1.19457186]
[1770596634000,1.19422948,2093.4,2092.7,0.98713485]
[1770596634203,1.19422948,2093.4,2092.7,0.001]
[1770596634405,4.53222948,2093.4,2092.7,1.19562597]
[1770596634592,4.53222948,2093.4,2092.7,0.001]
[1770596635004,3.338,2093.4,2092.7,1.19560743]
[1770596635193,7.54406013,2093.7,2092.8,0.98613485]
[1770596635399,7.54406606,2093.7,2092.8,0.98613485]
[1770596635886,6.35,2093.7,2092.8,0.98613485]
[1770596636283,7.5440713,2093.7,2092.9,2.18064963]
[1770596636486,6.35,2093.7,2092.9,2.18064963]
[1770596637010,7.54407266,2093.7,2092.9,2.18064963]
[1770596638505,6.35,2093.7,2092.9,2.18064963]
[1770596638692,7.54406173,2093.7,2092.9,2.18064963]
[1770596639405,7.54406173,2093.7,2092.9,2.18164963]
[1770596640287,0.99850005,2093.3,2092.7,0.001]
[1770596640487,4.33650005,2093.3,2092.7,0.001]
[1770596641493,4.33650005,2093.3,2092.6,0.001]
[1770596641494,0.99850005,2093.1,2092.6,0.001]
[1770596641692,0.99850005,2092.9,2092.5,0.001]
[1770596641892,3.338,2092.8,2092.5,0.001]
[1770596642499,1.19462894,2092.7,2092.5,0.001]
[1770596642900,4.53261305,2092.8,2092.5,0.001]
[1770596643241,6.35,2093.2,2092.5,0.98713485]
[1770596643531,4.53226102,2093.4,2092.5,0.98713485]
[1770596643901,3.338,2093.4,2092.5,0.98713485]
[1770596644405,3.338,2093.4,2092.7,0.98613485]
[1770596646501,0.002,2093.5,2092.8,1.19457186]
[1770596646820,0.002,2093.5,2092.8,2.18070671]
[1770596647924,0.002,2093.5,2092.7,1.19458873]
[1770596648819,0.002,2093.5,2092.6,4.77855925]
[1770596649899,0.002,2093.5,2092.7,0.98613485]
[1770596650825,0.002,2093.5,2092.8,1.19457186]
[1770596652929,0.002,2093.5,2092.6,2.18082088]
[1770596653607,1.00050005,2093.5,2092.8,0.001]
[1770596653926,1.00050005,2093.3,2092.8,0.001]
[1770596654116,4.33850005,2093.3,2092.8,0.001]
[1770596655031,1.19434358,2093.2,2092.8,0.001]
[1770596655610,9.1158744,2093.3,2092.8,0.001]
[1770596655611,4.53432738,2093.3,2092.8,0.001]
[1770596655813,0.002,2093.3,2092.8,1.18446679]
[1770596656912,0.002,2093.3,2092.9,1.19451478]
[1770596659716,0.002,2093.3,2092.8,0.001]
[1770596659917,1.23891657,2093.2,2092.8,0.001]
[1770596660345,1.29410951,2093.2,2092.5,0.001]
[1770596661144,2.43331721,2093.1,2092.5,0.001]
[1770596661316,2.48851015,2093.1,2092.5,0.001]
[1770596661718,1.23891657,2093.0,2092.5,0.001]
[1770596663245,1.19451478,2092.9,2092.5,0.001]
[1770596664731,4.53432905,2093.3,2092.5,1.222885]
[1770596665257,4.53432905,2093.3,2092.5,2.41760047]
[1770596665446,4.53432905,2093.3,2092.5,0.001]
[1770596665447,1.23891657,2093.2,2092.5,0.001]
[1770596665626,1.23891657,2093.2,2092.5,1.19573666]
[1770596665963,5.77324562,2093.3,2092.5,1.19573666]
[1770596666147,5.77324562,2093.3,2092.5,0.001]
[1770596666324,5.77324562,2093.3,2092.5,1.19573894]
[1770596666524,4.53432905,2093.3,2092.7,0.001]
[1770596666724,0.002,2093.0,2092.7,0.001]
[1770596668860,0.002,2093.2,2092.8,1.221885]
[1770596669453,0.002,2093.2,2092.9,1.19451478]
[1770596674559,0.002,2093.8,2093.2,1.221885]
[1770596675467,1.19600149,2093.8,2092.9,2.41639978]
[1770596675865,0.002,2093.8,2093.0,1.221885]
[1770596677562,0.002,2093.8,2093.2,1.221885]
[1770596677767,0.002,2093.8,2093.3,1.19428653]
[1770596678288,1.23891657,2093.6,2092.8,1.1945468]
[1770596678576,1.23891657,2093.6,2092.9,1.1945034]
[1770596678757,3.338,2093.7,2093.0,1.19442468]
[1770596679289,4.57691657,2093.7,2092.7,1.222885]
[1770596679464,1.23891657,2093.6,2093.0,0.001]
[1770596679674,1.24091657,2093.6,2093.0,0.001]
[1770596679981,1.19417243,2093.5,2093.0,0.001]
[1770596682184,0.002,2093.6,2093.0,0.001]
[1770596682392,0.002,2093.6,2093.0,1.222885]
[1770596683386,0.002,2093.6,2093.0,0.001]
[1770596683993,0.002,2093.6,2093.0,1.222885]
[1770596684370,0.002,2093.6,2093.1,1.19440064]
[1770596684575,1.24091657,2093.6,2093.0,0.001]
[1770596685068,1.37568211,2093.5,2092.8,0.001]
[1770596686375,2.56991159,2093.4,2092.8,0.001]
[1770596686889,1.19421459,2093.5,2092.8,0.001]
[1770596687396,1.19615391,2093.6,2092.8,1.42987363]
[1770596687564,0.002,2093.6,2092.8,1.42987363]
[1770596687893,1.19335433,2095.0,2093.7,1.42887363]
[1770596688071,2.56903644,2095.0,2093.7,1.42887363]
[1770596688272,0.002,2094.9,2093.9,1.42887363]
[1770596688466,1.19320351,2095.2,2094.1,1.42887363]
[1770596688668,2.57088562,2095.2,2094.0,1.19388729]
[1770596689093,0.002,2095.1,2094.0,1.19388729]
[1770596689866,0.002,2095.0,2094.1,1.42887363]
[1770596690068,1.19318775,2095.3,2094.1,1.42887363]
[1770596690263,0.002,2095.2,2094.1,1.42887363]
[1770596690497,0.002,2095.2,2094.3,1.42887363]
[1770596690679,0.002,2095.2,2094.2,1.19377327]
[1770596690680,0.002,2095.5,2094.8,4.07842763]
[1770596690873,0.002,2095.5,2095.0,1.42887363]
[1770596691175,1.19246362,2096.5,2095.0,1.42887363]
[1770596691370,2.56814573,2096.5,2095.1,6.643383]
[1770596691575,1.37568211,2096.5,2095.2,1.42887363]
[1770596692095,1.19238658,2096.7,2095.4,1.42887363]
[1770596692297,2.62326163,2096.7,2095.4,1.42887363]
[1770596692504,1.37568211,2096.6,2095.5,1.19303268]
[1770596693200,0.002,2096.2,2095.5,1.19303268]
[1770596696782,0.002,2096.2,2095.2,1.19320351]
[1770596696984,0.002,2096.2,2095.3,1.42887363]
[1770596698812,0.002,2096.2,2095.1,3.337]
[1770596699119,1.43087505,2096.1,2095.2,1.19316151]
[1770596699279,1.37568211,2096.1,2095.3,1.19314491]
[1770596700723,0.002,2096.2,2095.3,1.19314491]
[1770596700888,1.19218667,2097.0,2095.8,1.42887363]
[1770596701206,1.37568211,2097.1,2095.8,1.42887363]
[1770596701374,1.69474676,2097.4,2096.0,1.42887363]
[1770596701578,0.05519294,2097.3,2096.0,1.42887363]
[1770596701773,1.37568211,2097.3,2096.0,1.42887363]
[1770596702910,2.88670504,2097.4,2096.2,1.19263429]
[1770596703110,0.31906465,2097.4,2096.3,1.42887363]
[1770596703530,0.31906465,2097.4,2096.5,1.42887363]
[1770596703803,0.31906465,2097.4,2096.7,1.42887363]
[1770596704894,0.002,2097.1,2096.9,1.42887363]
[1770596705199,1.19292549,2098.1,2096.9,1.42887363]
[1770596705404,0.002,2097.3,2096.9,1.42887363]
[1770596705579,1.19289783,2098.1,2096.9,1.42887363]
[1770596706281,1.37568211,2098.0,2096.8,1.19229301]
[1770596706895,2.56734488,2098.0,2096.8,1.42887363]
[1770596707916,2.56861889,2098.1,2096.8,1.42887363]
[1770596708205,1.43087505,2098.0,2096.8,1.42887363]
[1770596708526,1.37568211,2098.0,2096.8,1.42887363]
[1770596709208,1.19166785,2097.9,2096.9,1.19223615]
[1770596709414,2.56733182,2098.0,2096.9,1.19223615]
[1770596710722,1.37568211,2097.9,2096.9,1.19223615]
[1770596711227,1.37568211,2097.9,2096.6,1.19240675]
[1770596711228,1.19172466,2097.8,2096.6,1.19240675]
[1770596711441,1.19172466,2097.8,2096.7,3.214598]
[1770596712031,1.19172466,2097.8,2096.6,2.62128038]
[1770596712032,1.19168643,2097.9,2096.8,1.42887363]
[1770596712336,0.00134287,2098.1,2096.8,1.42887363]
[1770596712537,0.00134287,2098.1,2097.0,1.42887363]
[1770596712832,0.00134287,2098.1,2097.2,1.42887363]
[1770596713233,0.00134287,2098.1,2097.3,2.6208824]
[1770596713537,0.00134287,2098.1,2097.4,1.42887363]
[1770596715031,0.00134287,2098.1,2097.3,1.19200877]
[1770596716331,0.00134287,2098.1,2097.3,2.70767644]
[1770596716537,0.00134287,2098.1,2097.4,1.51566767]
[1770596717301,0.00134287,2098.1,2097.5,1.19189511]
[1770596717724,0.002,2097.9,2097.5,1.19189511]
[1770596719423,0.002,2097.9,2097.2,1.19205406]
[1770596719936,0.002,2097.9,2097.1,4.7693605]
[1770596719937,1.48974854,2097.9,2097.1,0.001]
[1770596720732,1.48774854,2097.7,2097.1,0.001]
[1770596721135,0.002,2097.9,2097.1,0.001]
[1770596721307,0.002,2097.9,2097.1,1.51666767]
[1770596723440,0.002,2097.9,2097.2,2.70773328]
[1770596725324,0.002,2097.9,2097.2,1.19206561]
[1770596725523,0.002,2097.9,2097.1,0.001]
[1770596725723,0.002,2097.9,2097.2,3.413421]
[1770596726042,0.002,2097.9,2097.1,0.001]
[1770596726407,0.00334287,2098.1,2097.5,23.54723867]
[1770596726644,0.00334287,2098.1,2097.6,3.331]
[1770596727009,1.48774854,2098.8,2097.6,3.331]
[1770596727214,1.1912136,2098.7,2097.6,4.384845]
[1770596727613,1.1912136,2098.7,2097.6,1.51566767]
[1770596727843,1.1912136,2098.7,2097.7,1.19178147]
[1770596728941,2.67896214,2098.7,2097.7,1.19178147]
[1770596730038,1.48774854,2098.6,2097.6,4.76712589]
[1770596731149,0.002,2098.5,2097.6,4.76712589]
[1770596732144,1.19332713,2098.5,2097.6,4.76712589]
[1770596732323,2.68107567,2098.5,2097.6,1.19183829]
[1770596732514,1.48774854,2098.1,2097.3,0.001]
[1770596732711,1.54294148,2098.1,2097.3,0.001]
[1770596733728,1.48774854,2097.7,2097.1,0.001]
[1770596734121,1.19183829,2097.6,2097.0,0.001]
[1770596734334,1.54294148,2097.5,2097.0,0.001]
[1770596734643,1.54294148,2097.5,2096.3,7.41723199]
[1770596734644,1.48774854,2097.1,2096.3,7.41723199]
[1770596735155,0.05519294,2096.9,2096.2,0.001]
[1770596735346,1.54294148,2096.8,2096.2,0.001]
[1770596735550,1.48774854,2096.8,2096.2,0.001]
[1770596736118,1.54294148,2096.8,2096.2,0.001]
[1770596736322,1.19212245,2097.1,2096.2,0.001]
[1770596736519,4.76797973,2097.4,2096.2,0.001]
[1770596736930,1.19193076,2097.5,2096.2,0.001]
[1770596737335,1.19193076,2097.5,2096.3,8.063348]
[1770596737743,1.51364062,2097.7,2096.5,10.13909667]
[1770596738046,1.51364062,2097.7,2096.6,3.308309]
[1770596738265,1.51364062,2097.7,2096.7,1.19234988]
[1770596740429,1.51364062,2097.7,2096.6,4.76946971]
[1770596741828,1.51364062,2097.7,2096.5,1.19241973]
[1770596742028,1.51364062,2097.7,2096.2,1.51666767]
[1770596742029,1.48774854,2097.4,2096.3,1.19257036]
[1770596742237,3.331,2097.4,2096.5,1.19246226]
[1770596742640,4.52298192,2097.4,2096.3,4.76985451]
[1770596742853,4.52298192,2097.4,2096.3,5.911562]
[1770596743036,4.52298192,2097.4,2096.3,5.69166]
[1770596744654,0.32182057,2097.7,2096.6,1.51566767]
[1770596744955,0.32182057,2097.7,2097.0,8.552525]
[1770596745157,0.32182057,2097.7,2097.0,2.213936]
[1770596745455,0.32182057,2097.7,2096.9,1.51566767]
[1770596745456,0.002,2097.4,2096.9,1.51566767]
[1770596746242,0.002,2097.4,2096.8,5.393763]
[1770596746465,0.002,2097.4,2096.8,5.173859]
[1770596746852,0.002,2097.4,2096.9,1.19223615]
[1770596747054,0.002,2097.4,2097.0,6.776851]
[1770596747759,0.002,2097.4,2097.0,3.042902]
[1770596748978,0.002,2097.4,2097.1,1.19212245]
[1770596749560,0.32182057,2097.7,2097.1,2.66479794]
[1770596750284,1.51362674,2097.7,2097.0,1.19213871]
[1770596750483,1.61709886,2097.6,2096.4,4.7709399]
[1770596750653,1.61709886,2097.6,2096.6,1.19239999]
[1770596750979,2.80899397,2097.5,2096.4,0.001]
[1770596751280,1.61709886,2097.4,2096.4,0.001]
[1770596752591,1.6722918,2097.4,2096.4,0.001]
[1770596752779,1.61709886,2097.4,2096.4,0.001]
[1770596752956,1.19200877,2097.3,2096.4,0.001]
[1770596753963,0.2811,2097.6,2096.6,1.47267549]
[1770596754313,1.47293971,2097.6,2096.6,1.47267549]